[Event "Lueneburg Open-B 2019"]
[Site "Lueneburg"]
[Date "2019.08.08"]
[Round "6.18"]
[White "Vogel, Elisabeth"]
[Black "Hotz, Herbert"]
[Result "1/2-1/2"]
[ECO "B19"]
[WhiteElo "1277"]
[BlackElo "1547"]
[Annotator "NA"]
[PlyCount "86"]
[EventDate "2019.08.03"]
[EventType "swiss"]
[EventCountry "GER"]
[SourceTitle "playchess.com"]
[Source "ChessBase"]
[SourceQuality "1"]
[TimeControl "40/5400+30:1800+30"]

1. e4 {[%emt 0:00:00]} c6 {[%emt 0:00:00]} 2. d4 {[%emt 0:00:00]} d5 {[%emt 0:00:00]} 3. Nc3 {[%emt 0:00:00]} dxe4 4. Nxe4 {[%emt 0:00:00]} Bf5 {[%emt 0:00:09]} 5. Ng3 {[%emt 0:00:03]} Bg6 {[%emt 0:00:08]} 6. h4 {[%emt 0:00:22]} h6 {[%emt 0:00:17]} 7. Nf3 {[%emt 0:00:33]} Nd7 {[%emt 0:00:12]} 8. h5 {[%emt 0:00:10]} Bh7 {[%emt 0:00:07]} 9. Bd3 {[%emt 0:00:20]} Bxd3 {[%emt 0:00:11]} 10. Qxd3 {[%emt 0:00:08]} e6 {[%emt 0:00:16]} 11. Bd2 {[%emt 0:01:08]} Ngf6 {[%emt 0:00:37]} 12. O-O-O {[%emt 0:00:55]} Bd6 {[%emt 0:03:05]} 13. Ne4 {[%emt 0:01:10]} Nxe4 {[%emt 0:01:33]} 14. Qxe4 {[%emt 0:00:09]} Qc7 {[%emt 0:02:46]} 15. Qe2 {[%emt 0:03:02]} O-O-O {[%emt 0:03:35]} 16. Rhe1 {[%emt 0:13:52]} Rhe8 {[%emt 0:01:14]} 17. Ne5 {[%emt 0:01:54]} Nxe5 {[%emt 0:07:27]} 18. dxe5 {[%emt 0:00:18]} Bc5 {[%emt 0:01:06]} 19. f4 {[%emt 0:03:41]} Rd7 {[%emt 0:29:10]} 20. Be3 {[%emt 0:14:41]} Bxe3+ {[%emt 0:02:46]} 21. Qxe3 {[%emt 0:00:22]} Rxd1+ {[%emt 0:00:41]} 22. Rxd1 {[%emt 0:00:22]} b6 {[%emt 0:05:24]} 23. g4 {[%emt 0:06:51]} Rd8 {[%emt 0:01:46]} 24. Rxd8+ {[%emt 0:01:20]} Qxd8 {[%emt 0:00:42]} 25. Qf3 {[%emt 0:06:40]} Qd5 {[%emt 0:00:47]} 26. Qxd5 {[%emt 0:01:32]} exd5 {[%emt 0:07:01]} 27. g5 {[%emt 0:00:50]} Kd7 {[%emt 0:00:31]} 28. f5 {[%emt 0:06:18]} Ke7 {[%emt 0:03:44]} 29. f6+ {[%emt 0:04:39]} Kf8 {[%emt 0:06:15]} 30. g6 {[%emt 0:04:09]} gxf6 {[%emt 0:03:32]} 31. exf6 {[%emt 0:00:11]} fxg6 {[%emt 0:00:18]} 32. hxg6 {[%emt 0:00:12]} d4 {[%emt 0:00:50]} 33. Kd2 {[%emt 0:01:10]} c5 {[%emt 0:00:36]} 34. Kd3 {[%emt 0:29:58]} h5 35. Ke4 {[%emt 0:00:00]} h4 {[%emt 0:01:13]} 36. Kf5 {[%emt 0:00:00]} h3 {[%emt 0:01:36]} 37. Ke6 {[%emt 0:00:00]} h2 {[%emt 0:00:35]} 38. g7+ {[%emt 0:00:00]} Kg8 {[%emt 0:00:13]} 39. Ke7 {[%emt 0:00:00]} h1=Q {[%emt 0:19:07]} 40. f7+ {[%emt 0:03:00]} Kxg7 {[%emt 0:00:00]} 41. f8=Q+ {[%emt 0:30:30]} Kh7 {[%emt 0:31:00]} 42. Qf7+ {[%emt 0:00:00]} Kh8 {[%emt 0:00:00]} 43. Qf8+ {[%emt 0:00:00]} Kh7 {[%emt 0:00:00]} 1/2-1/2

[Event "Lueneburg Open-B 2019"]
[Site "Lueneburg"]
[Date "2019.08.08"]
[Round "6.19"]
[White "Hinke, Gerhard"]
[Black "Rennkamp, David"]
[Result "1/2-1/2"]
[ECO "C54"]
[WhiteElo "1476"]
[BlackElo "1355"]
[Annotator "NA"]
[PlyCount "69"]
[EventDate "2019.08.03"]
[EventType "swiss"]
[EventCountry "GER"]
[SourceTitle "playchess.com"]
[Source "ChessBase"]
[SourceQuality "1"]
[TimeControl "40/5400+30:1800+30"]

1. e4 {[%emt 0:00:00]} e5 {[%emt 0:00:00]} 2. Nf3 {[%emt 0:00:00]} Nc6 {[%emt 0:00:00]} 3. Bc4 {[%emt 0:00:10]} Bc5 {[%emt 0:00:00]} 4. c3 {[%emt 0:00:14]} Nf6 {[%emt 0:01:21]} 5. d3 {[%emt 0:00:15]} d6 {[%emt 0:00:20]} 6. h3 {[%emt 0:00:16]} O-O {[%emt 0:00:21]} 7. b4 {[%emt 0:00:57]} Bb6 {[%emt 0:00:09]} 8. a4 {[%emt 0:00:19]} a6 {[%emt 0:00:08]} 9. Bb3 {[%emt 0:00:23]} Be6 {[%emt 0:00:38]} 10. O-O {[%emt 0:03:06]} Ne7 {[%emt 0:01:31]} 11. Nbd2 {[%emt 0:02:04]} Ng6 {[%emt 0:00:14]} 12. Nc4 {[%emt 0:01:33]} Ba7 {[%emt 0:00:57]} 13. Ng5 {[%emt 0:05:44]} Qe7 {[%emt 0:05:38]} 14. Nxe6 {[%emt 0:01:24]} fxe6 {[%emt 0:01:36]} 15. Be3 {[%emt 0:00:18]} Bxe3 {[%emt 0:00:42]} 16. Nxe3 {[%emt 0:00:15]} Nf4 {[%emt 0:02:07]} 17. Kh2 {[%emt 0:02:24]} Kh8 {[%emt 0:05:41]} 18. g3 {[%emt 0:01:03]} Ng6 {[%emt 0:00:13]} 19. Ra2 {[%emt 0:02:36]} Nd7 {[%emt 0:04:37]} 20. Qg4 {[%emt 0:04:53]} Rf6 {[%emt 0:02:12]} 21. Ng2 {[%emt 0:00:28]} Raf8 {[%emt 0:02:21]} 22. Nh4 {[%emt 0:03:44]} Nxh4 {[%emt 0:01:42]} 23. Qxh4 {[%emt 0:00:18]} R6f7 {[%emt 0:01:08]} 24. Qxe7 {[%emt 0:00:50]} Rxe7 {[%emt 0:00:09]} 25. Kg2 {[%emt 0:01:02]} Rf6 {[%emt 0:02:20]} 26. a5 {[%emt 0:00:49]} Ref7 {[%emt 0:01:28]} 27. Rb2 {[%emt 0:01:17]} c6 {[%emt 0:01:00]} 28. c4 {[%emt 0:03:22]} c5 {[%emt 0:06:48]} 29. Ba4 {[%emt 0:00:44]} cxb4 {[%emt 0:01:51]} 30. Bxd7 {[%emt 0:00:59]} Rxd7 {[%emt 0:03:15]} 31. Rxb4 {[%emt 0:02:04]} h6 {[%emt 0:01:11]} 32. Rfb1 {[%emt 0:00:46]} Rff7 {[%emt 0:00:11]} 33. Rb6 {[%emt 0:00:44]} Rfe7 {[%emt 0:00:38]} 34. Kf1 {[%emt 0:00:34]} Kh7 {[%emt 0:00:54]} 35. Ke2 {[%emt 0:02:06]} 1/2-1/2

[Event "Lueneburg Open-B 2019"]
[Site "Lueneburg"]
[Date "2019.08.08"]
[Round "6.20"]
[White "Kasperski, Achim"]
[Black "Buchinger, Alexis"]
[Result "0-1"]
[ECO "A25"]
[WhiteElo "1207"]
[BlackElo "1346"]
[Annotator "NA"]
[PlyCount "86"]
[EventDate "2019.08.03"]
[EventType "swiss"]
[EventCountry "GER"]
[SourceTitle "playchess.com"]
[Source "ChessBase"]
[SourceQuality "1"]
[TimeControl "40/5400+30:1800+30"]

1. c4 {[%emt 0:00:00]} Nf6 {[%emt 0:00:00]} 2. g3 {[%emt 0:00:00]} e5 {[%emt 0:00:06]} 3. Bg2 {[%emt 0:00:03]} Bc5 {[%emt 0:00:13]} 4. Nc3 {[%emt 0:00:16]} Nc6 {[%emt 0:00:32]} 5. e3 {[%emt 0:02:49]} d6 {[%emt 0:01:02]} 6. Nge2 {[%emt 0:00:08]} Be6 {[%emt 0:00:31]} 7. b3 {[%emt 0:00:19]} d5 {[%emt 0:00:44]} 8. cxd5 {[%emt 0:01:01]} Nxd5 {[%emt 0:00:17]} 9. O-O {[%emt 0:00:31]} O-O {[%emt 0:00:44]} 10. a4 {[%emt 0:04:22]} Qd7 {[%emt 0:01:29]} 11. Ba3 {[%emt 0:00:16]} Bxa3 {[%emt 0:01:15]} 12. Rxa3 {[%emt 0:00:08]} Rad8 {[%emt 0:00:37]} 13. Ne4 {[%emt 0:03:33]} f5 {[%emt 0:01:45]} 14. Nc5 {[%emt 0:00:44]} Qe7 {[%emt 0:00:19]} 15. Qc1 {[%emt 0:02:56]} b6 {[%emt 0:02:10]} 16. Nxe6 {[%emt 0:04:52]} Qxe6 {[%emt 0:01:21]} 17. Rd1 {[%emt 0:12:17]} e4 {[%emt 0:05:39]} 18. Bf1 {[%emt 0:09:41]} g5 {[%emt 0:01:39]} 19. Nc3 {[%emt 0:01:58]} Nxc3 {[%emt 0:00:47]} 20. Bc4 {[%emt 0:00:13]} Nd5 {[%emt 0:00:20]} 21. d3 {[%emt 0:00:58]} exd3 {[%emt 0:00:42]} 22. Rxd3 {[%emt 0:00:36]} Ncb4 {[%emt 0:00:52]} 23. Rd4 {[%emt 0:00:21]} c6 {[%emt 0:01:03]} 24. Qd2 {[%emt 0:00:54]} c5 {[%emt 0:01:47]} 25. Rd3 Nxd3 {[%emt 0:00:36]} 26. Qxd3 {[%emt 0:04:43]} Qe4 {[%emt 0:00:27]} 27. Qd2 {[%emt 0:01:16]} Kg7 {[%emt 0:02:30]} 28. Ra1 {[%emt 0:00:36]} Kh6 {[%emt 0:01:17]} 29. Rd1 {[%emt 0:03:45]} Nxe3 {[%emt 0:00:54]} 30. fxe3 {[%emt 0:01:39]} Rxd2 {[%emt 0:00:11]} 31. Rxd2 {[%emt 0:00:30]} Qxe3+ {[%emt 0:00:10]} 32. Rf2 {[%emt 0:00:02]} Rd8 {[%emt 0:00:17]} 33. Be2 {[%emt 0:00:27]} Rd2 {[%emt 0:00:41]} 34. Kf1 {[%emt 0:00:00]} f4 {[%emt 0:00:37]} 35. h4 {[%emt 0:01:48]} gxh4 {[%emt 0:00:18]} 36. gxf4 {[%emt 0:01:11]} Qxb3 {[%emt 0:00:52]} 37. f5 {[%emt 0:00:08]} h3 {[%emt 0:00:26]} 38. Kg1 {[%emt 0:00:54]} Qg3+ {[%emt 0:00:31]} 39. Kf1 {[%emt 0:00:08]} Qxf2+ {[%emt 0:00:23]} 40. Kxf2 {[%emt 0:00:04]} Rxe2+ {[%emt 0:00:14]} 41. Kxe2 {[%emt 0:30:02]} h2 {[%emt 0:30:24]} 42. f6 {[%emt 0:00:01]} h1=Q {[%emt 1:14:18]} 43. f7 {[%emt 0:00:12]} Qh5+ {[%emt 0:00:00]} 0-1

[Event "Lueneburg Open-B 2019"]
[Site "Lueneburg"]
[Date "2019.08.09"]
[Round "7.1"]
[White "Rewerts, Ingo"]
[Black "Wiese, Uwe"]
[Result "0-1"]
[ECO "A80"]
[WhiteElo "1792"]
[BlackElo "1737"]
[Annotator "NA RC"]
[PlyCount "86"]
[EventDate "2019.08.03"]
[EventType "swiss"]
[EventCountry "GER"]
[SourceTitle "playchess.com"]
[Source "ChessBase"]
[SourceQuality "1"]
[TimeControl "40/5400+30:1800+30"]

1. d4 {[%emt 0:00:00]} f5 {[%emt 0:00:00]} 2. Nf3 {[%emt 0:00:00]} Nf6 {[%emt 0:00:00]} 3. c3 {[%emt 0:00:11]} e6 {[%emt 0:00:59]} 4. Bg5 {[%emt 0:00:29]} Be7 {[%emt 0:00:33]} 5. Nbd2 {[%emt 0:00:17]} d5 {[%emt 0:01:04]} 6. Bxf6 {[%emt 0:01:15]} Bxf6 {[%emt 0:00:11]} 7. e3 {[%emt 0:00:04]} O-O {[%emt 0:00:34]} 8. Bd3 {[%emt 0:00:20]} Nd7 {[%emt 0:02:43]} 9. Qc2 {[%emt 0:02:56]} c6 {[%emt 0:00:38]} 10. h3 {[%emt 0:01:16]} g6 {[%emt 0:17:46]} 11. O-O-O {[%emt 0:06:01]} e5 {[%emt 0:06:19]} 12. dxe5 {[%emt 0:00:16]} Nxe5 {[%emt 0:06:21]} 13. Nxe5 {[%emt 0:00:08]} Bxe5 {[%emt 0:00:10]} 14. Rdg1 {[%emt 0:00:14]} Qa5 {[%emt 0:11:17]} 15. f4 {[%emt 0:00:40]} Bg7 {[%emt 0:00:28]} 16. Kb1 {[%emt 0:00:25]} Qb6 {[%emt 0:02:06]} 17. Nf1 {[%emt 0:03:23]} c5 {[%emt 0:01:36]} 18. g4 {[%emt 0:25:49]} c4 {[%emt 0:10:37]} 19. Be2 {[%emt 0:00:12]} Be6 {[%emt 0:00:31]} 20. Bf3 {[%emt 0:01:39]} Rac8 {[%emt 0:00:59]} 21. gxf5 {[%emt 0:02:56]} Bxf5 {[%emt 0:04:17]} 22. e4 {[%emt 0:01:37]} dxe4 {[%emt 0:06:38]} 23. Bxe4 {[%emt 0:00:14]} Bxe4 {[%emt 0:00:44]} 24. Qxe4 {[%emt 0:00:36]} Bxc3 {[%emt 0:01:56]} 25. Qc2 {[%emt 0:01:56]} Bd4 {[%emt 0:00:52]} 26. Rg4 {[%emt 0:01:26]} c3 {[%emt 0:03:22]} 27. b3 {[%emt 0:00:37]} Rfe8 {[%emt 0:00:28]} 28. Ng3 {[%emt 0:01:45]} Bg1 {[%emt 0:02:46]} 29. Ne4 {[%emt 0:08:58]} Rxe4 {[%emt 0:00:44]} 30. Rhxg1 {[%emt 0:00:28]} Qd4 {[%emt 0:04:54]} 31. f5 {[%emt 0:09:40]} Rxg4 {[%emt 0:00:41]} 32. Rxg4 {[%emt 0:00:23]} Qe3 {[%emt 0:03:38]} 33. fxg6 {[%emt 0:06:19]} Qe1+ {[%emt 0:00:30]} 34. Qc1 {[%emt 0:02:52]} c2+ {[%emt 0:00:16]} 35. Kb2 {[%emt 0:00:08]} Qe5+ {[%emt 0:00:11]} 36. Ka3 {[%emt 0:00:16]} Qa5+ {[%emt 0:02:57]} 37. Kb2 {[%emt 0:00:58]} Qe5+ {[%emt 0:01:50]} 38. Ka3 {[%emt 0:00:18]} h5 {[%emt 0:01:04]} 39. Rg5 {[%emt 0:03:35]} Qd6+ {[%emt 0:00:46]} 40. Ka4 {[%emt 0:10:10]} Qd7+ {[%emt 0:02:13]} 41. Ka3 {[%emt 0:31:26]} Qe7+ {[%emt 0:30:40]} 42. Kb2 {[%emt 0:00:11]} Qf6+ {[%emt 0:00:09]} 43. Ka3 {[%emt 0:00:07]} Qxg5 {[%emt 0:00:06]} 0-1

[Event "Lueneburg Open-B 2019"]
[Site "Lueneburg"]
[Date "2019.08.09"]
[Round "7.2"]
[White "Ische, Helmut"]
[Black "Suliga, Eckhard"]
[Result "1/2-1/2"]
[ECO "B22"]
[WhiteElo "1662"]
[BlackElo "1682"]
[Annotator "NA RC"]
[PlyCount "75"]
[EventDate "2019.08.03"]
[EventType "swiss"]
[EventCountry "GER"]
[SourceTitle "playchess.com"]
[Source "ChessBase"]
[SourceQuality "1"]
[TimeControl "40/5400+30:1800+30"]

1. e4 {[%emt 0:02:28]} e6 {[%emt 0:00:00]} 2. d4 {[%emt 0:00:21]} d5 {[%emt 0:00:00]} 3. Nd2 {[%emt 0:00:19]} c5 {[%emt 0:00:04]} 4. exd5 {[%emt 0:00:28]} exd5 {[%emt 0:00:23]} 5. Ngf3 {[%emt 0:00:11]} Bd6 {[%emt 0:00:19]} 6. dxc5 {[%emt 0:01:02]} Bxc5 {[%emt 0:00:09]} 7. Nb3 {[%emt 0:00:10]} Bd6 {[%emt 0:00:17]} 8. Be2 {[%emt 0:03:54]} Nc6 {[%emt 0:00:51]} 9. c3 {[%emt 0:00:40]} Nge7 {[%emt 0:01:18]} 10. O-O {[%emt 0:01:55]} O-O {[%emt 0:00:12]} 11. Re1 {[%emt 0:01:20]} Qc7 {[%emt 0:06:33]} 12. h3 {[%emt 0:01:51]} Re8 {[%emt 0:06:16]} 13. Bd3 {[%emt 0:01:10]} Bd7 {[%emt 0:02:36]} 14. Nbd4 {[%emt 0:06:56]} Nxd4 {[%emt 0:01:46]} 15. Nxd4 {[%emt 0:06:16]} a6 {[%emt 0:13:07]} 16. Be3 {[%emt 0:04:24]} Rad8 {[%emt 0:02:09]} 17. Rc1 {[%emt 0:04:43]} b5 {[%emt 0:08:41]} 18. a3 {[%emt 0:01:11]} Nc6 {[%emt 0:13:53]} 19. Nf3 {[%emt 0:03:49]} Ne5 {[%emt 0:05:18]} 20. Nxe5 {[%emt 0:06:49]} Rxe5 {[%emt 0:02:22]} 21. Bd4 {[%emt 0:06:36]} Rxe1+ {[%emt 0:00:33]} 22. Qxe1 {[%emt 0:00:09]} Re8 {[%emt 0:00:07]} 23. Qd1 {[%emt 0:03:41]} Qc8 {[%emt 0:01:05]} 24. Qh5 {[%emt 0:07:10]} f5 {[%emt 0:03:52]} 25. Qf3 {[%emt 0:05:24]} Be6 {[%emt 0:02:09]} 26. Re1 {[%emt 0:04:59]} g6 {[%emt 0:02:34]} 27. Kf1 {[%emt 0:05:43]} Bf7 {[%emt 0:01:03]} 28. Rxe8+ {[%emt 0:04:33]} Qxe8 {[%emt 0:00:28]} 29. Qe3 {[%emt 0:00:42]} Qxe3 {[%emt 0:26:25]} 30. Bxe3 {[%emt 0:00:41]} Be8 {[%emt 0:00:00]} 31. f4 {[%emt 0:00:47]} Bd7 {[%emt 0:00:00]} 32. Be2 {[%emt 0:01:13]} Kf7 {[%emt 0:00:00]} 33. h4 {[%emt 0:01:57]} h5 {[%emt 0:00:00]} 34. Ke1 {[%emt 0:01:54]} Bc8 {[%emt 0:00:00]} 35. g3 {[%emt 0:01:00]} Ke6 {[%emt 0:00:00]} 36. Kd2 {[%emt 0:00:20]} Be7 {[%emt 0:00:00]} 37. Bf3 {[%emt 0:01:36]} Kd6 {[%emt 0:00:00]} 38. Kd3 {[%emt 0:01:03]} 1/2-1/2

[Event "Lueneburg Open-B 2019"]
[Site "Lueneburg"]
[Date "2019.08.09"]
[Round "7.3"]
[White "Thomas, Jeremy"]
[Black "Neumann, Lutz"]
[Result "1-0"]
[ECO "B43"]
[WhiteElo "1717"]
[BlackElo "1784"]
[Annotator "NA"]
[PlyCount "175"]
[EventDate "2019.08.03"]
[EventType "swiss"]
[EventCountry "GER"]
[SourceTitle "playchess.com"]
[Source "ChessBase"]
[SourceQuality "1"]
[TimeControl "40/5400+30:1800+30"]

1. e4 {[%emt 0:00:00]} c5 {[%emt 0:00:00]} 2. Nf3 {[%emt 0:00:00]} e6 {[%emt 0:00:00]} 3. d4 {[%emt 0:00:00]} cxd4 {[%emt 0:00:00]} 4. Nxd4 {[%emt 0:00:00]} a6 {[%emt 0:00:02]} 5. Nc3 {[%emt 0:01:16]} Qc7 {[%emt 0:00:08]} 6. a3 {[%emt 0:07:45]} Nf6 {[%emt 0:01:01]} 7. Bd3 {[%emt 0:02:22]} Be7 {[%emt 0:00:30]} 8. Be3 {[%emt 0:02:37]} d6 {[%emt 0:01:27]} 9. O-O {[%emt 0:07:15]} O-O {[%emt 0:00:41]} 10. Rc1 {[%emt 0:08:27]} Nbd7 {[%emt 0:01:43]} 11. Bg5 {[%emt 0:10:06]} h6 {[%emt 0:05:43]} 12. Bh4 {[%emt 0:00:31]} Ne5 {[%emt 0:05:12]} 13. Bg3 {[%emt 0:05:47]} Nxd3 {[%emt 0:03:20]} 14. cxd3 {[%emt 0:00:18]} Qb6 {[%emt 0:00:32]} 15. Nb3 {[%emt 0:01:20]} e5 {[%emt 0:05:21]} 16. Na4 {[%emt 0:01:29]} Qd8 {[%emt 0:01:29]} 17. Nd2 {[%emt 0:03:09]} b5 {[%emt 0:07:59]} 18. Nc3 {[%emt 0:01:16]} Qb6 {[%emt 0:02:18]} 19. Kh1 {[%emt 0:01:31]} Be6 {[%emt 0:07:48]} 20. f3 {[%emt 0:05:00]} Nd7 {[%emt 0:10:50]} 21. Bf2 {[%emt 0:01:25]} Qb7 {[%emt 0:00:53]} 22. d4 {[%emt 0:02:24]} d5 {[%emt 0:05:55]} 23. exd5 {[%emt 0:05:41]} Bxd5 {[%emt 0:03:04]} 24. Nxd5 {[%emt 0:02:04]} Qxd5 {[%emt 0:00:28]} 25. Ne4 {[%emt 0:01:53]} Rac8 {[%emt 0:04:59]} 26. Nc3 {[%emt 0:04:10]} Qb7 {[%emt 0:01:55]} 27. Re1 {[%emt 0:02:49]} Bg5 {[%emt 0:05:20]} 28. Rc2 {[%emt 0:04:17]} exd4 {[%emt 0:01:34]} 29. Bxd4 {[%emt 0:01:52]} Bf6 {[%emt 0:04:15]} 30. Bxf6 {[%emt 0:00:54]} Nxf6 {[%emt 0:00:36]} 31. Rce2 {[%emt 0:01:15]} Rfe8 {[%emt 0:01:46]} 32. Qd6 {[%emt 0:08:38]} Rxe2 {[%emt 0:05:24]} 33. Rxe2 {[%emt 0:01:20]} Qc6 {[%emt 0:01:03]} 34. Qxc6 {[%emt 0:00:40]} Rxc6 {[%emt 0:00:25]} 35. Kg1 {[%emt 0:00:19]} Kf8 {[%emt 0:00:17]} 36. Kf2 {[%emt 0:00:42]} Rc7 {[%emt 0:01:08]} 37. Re5 {[%emt 0:01:57]} Nd7 {[%emt 0:04:03]} 38. Re2 {[%emt 0:02:33]} Nb6 {[%emt 0:00:40]} 39. Ne4 {[%emt 0:01:01]} Na4 {[%emt 0:03:38]} 40. Nd6 {[%emt 0:01:57]} Re7 {[%emt 0:02:54]} 41. Rc2 {[%emt 0:31:54]} Rd7 {[%emt 0:32:33]} 42. Nf5 {[%emt 0:00:00]} f6 {[%emt 0:00:00]} 43. b3 {[%emt 0:00:00]} Nb6 {[%emt 0:00:00]} 44. Rc6 {[%emt 0:00:00]} Rb7 {[%emt 0:00:00]} 45. Ke2 {[%emt 0:00:00]} h5 {[%emt 0:00:00]} 46. Rd6 {[%emt 0:00:00]} Kf7 {[%emt 0:00:00]} 47. Rc6 {[%emt 0:00:00]} Kg6 {[%emt 0:00:00]} 48. Nd6 {[%emt 0:00:00]} Rb8 {[%emt 0:00:00]} 49. Kd3 {[%emt 0:00:00]} b4 {[%emt 0:00:00]} 50. a4 {[%emt 0:00:00]} a5 {[%emt 0:00:00]} 51. Kd4 {[%emt 0:00:00]} h4 {[%emt 0:00:00]} 52. Nc4 {[%emt 0:00:00]} Nxc4 {[%emt 0:00:00]} 53. Rxc4 {[%emt 0:00:00]} Rd8+ {[%emt 0:00:00]} 54. Ke3 {[%emt 0:00:00]} Rd5 {[%emt 0:00:00]} 55. Rxh4 {[%emt 0:00:00]} Kg5 {[%emt 0:00:00]} 56. Rd4 {[%emt 0:00:00]} Re5+ {[%emt 0:00:00]} 57. Kd3 {[%emt 0:00:00]} Rc5 {[%emt 0:00:00]} 58. Rc4 {[%emt 0:00:00]} Rd5+ {[%emt 0:00:00]} 59. Ke2 {[%emt 0:00:00]} Re5+ {[%emt 0:00:00]} 60. Kf2 {[%emt 0:00:00]} Rd5 {[%emt 0:00:00]} 61. f4+ {[%emt 0:00:00]} Kf5 {[%emt 0:00:21]} 62. Ke2 {[%emt 0:00:00]} g5 {[%emt 0:00:39]} 63. fxg5 {[%emt 0:00:00]} fxg5 {[%emt 0:00:13]} 64. h4 {[%emt 0:01:31]} gxh4 {[%emt 0:00:19]} 65. Rxh4 {[%emt 0:00:07]} Kg5 {[%emt 0:00:09]} 66. Rc4 {[%emt 0:01:28]} Kf5 {[%emt 0:01:04]} 67. Ke3 {[%emt 0:00:47]} Re5+ {[%emt 0:01:42]} 68. Kd4 {[%emt 0:00:21]} Re4+ {[%emt 0:00:10]} 69. Kc5 {[%emt 0:00:35]} Re3 {[%emt 0:00:44]} 70. Kb5 {[%emt 0:00:33]} Rxb3 {[%emt 0:00:23]} 71. g4+ {[%emt 0:00:11]} Kg5 {[%emt 0:00:23]} 72. Kxa5 {[%emt 0:00:07]} Rb1 {[%emt 0:01:50]} 73. Rxb4 {[%emt 0:00:20]} Re1 {[%emt 0:00:35]} 74. Rc4 {[%emt 0:00:33]} Rb1 {[%emt 0:00:20]} 75. Ka6 {[%emt 0:00:19]} Rb2 {[%emt 0:00:20]} 76. a5 {[%emt 0:00:20]} Rb1 {[%emt 0:00:05]} 77. Ka7 {[%emt 0:00:07]} Rb2 {[%emt 0:00:07]} 78. a6 {[%emt 0:00:13]} Rb1 {[%emt 0:00:18]} 79. Ka8 {[%emt 0:04:53]} Rb2 {[%emt 0:00:08]} 80. a7 {[%emt 0:01:17]} Rb1 {[%emt 0:00:13]} 81. Rc7 {[%emt 0:00:26]} Rh1 {[%emt 0:02:48]} 82. Rg7+ {[%emt 0:00:24]} Kf6 {[%emt 0:00:09]} 83. Rg8 {[%emt 0:00:11]} Kf7 {[%emt 0:00:43]} 84. Rb8 {[%emt 0:00:42]} Kg6 {[%emt 0:01:10]} 85. Rb6+ {[%emt 0:02:01]} Kg5 {[%emt 0:00:16]} 86. Kb7 {[%emt 0:00:12]} Rh7+ {[%emt 0:01:35]} 87. Ka6 {[%emt 0:00:03]} Rh1 {[%emt 0:00:23]} 88. a8=Q {[%emt 0:00:14]} 1-0

[Event "Lueneburg Open-B 2019"]
[Site "Lueneburg"]
[Date "2019.08.09"]
[Round "7.4"]
[White "Goldmann, David"]
[Black "Fomenkov, Alexander"]
[Result "0-1"]
[ECO "C42"]
[WhiteElo "1403"]
[BlackElo "1779"]
[Annotator "NA RC"]
[PlyCount "80"]
[EventDate "2019.08.03"]
[EventType "swiss"]
[EventCountry "GER"]
[SourceTitle "playchess.com"]
[Source "ChessBase"]
[SourceQuality "1"]
[TimeControl "40/5400+30:1800+30"]

1. e4 {[%emt 0:01:00]} e5 {[%emt 0:09:57]} 2. Nf3 {[%emt 0:00:28]} Nf6 {[%emt 0:00:08]} 3. Nxe5 {[%emt 0:00:48]} d6 {[%emt 0:00:08]} 4. Nf3 {[%emt 0:00:33]} Nxe4 {[%emt 0:00:07]} 5. Nc3 {[%emt 0:00:22]} Nxc3 {[%emt 0:00:07]} 6. dxc3 {[%emt 0:00:15]} Be7 {[%emt 0:00:15]} 7. Be3 {[%emt 0:00:18]} O-O {[%emt 0:00:12]} 8. Qd2 {[%emt 0:00:13]} Be6 {[%emt 0:00:19]} 9. O-O-O {[%emt 0:00:21]} a5 {[%emt 0:01:17]} 10. Kb1 {[%emt 0:00:34]} Nc6 {[%emt 0:00:40]} 11. h4 {[%emt 0:00:17]} Ne5 {[%emt 0:01:24]} 12. h5 {[%emt 0:00:19]} f6 {[%emt 0:08:37]} 13. Nd4 {[%emt 0:00:48]} Bf7 {[%emt 0:03:24]} 14. Be2 {[%emt 1:30:44]} Qc8 {[%emt 0:05:49]} 15. Rh3 {[%emt 0:00:00]} Nc4 {[%emt 0:16:16]} 16. Bxc4 {[%emt 0:00:00]} Bxc4 {[%emt 0:00:07]} 17. Rg3 {[%emt 0:00:00]} Kh8 {[%emt 0:00:30]} 18. Re1 {[%emt 0:00:00]} Qd7 {[%emt 0:01:42]} 19. b3 {[%emt 0:00:00]} Bf7 {[%emt 0:00:54]} 20. Bf4 {[%emt 0:00:00]} Rae8 {[%emt 0:07:04]} 21. Ree3 {[%emt 0:00:00]} a4 {[%emt 0:07:45]} 22. Qd3 {[%emt 0:00:00]} Rg8 {[%emt 0:07:23]} 23. Qe2 {[%emt 0:00:00]} Bd8 {[%emt 0:01:55]} 24. Qf3 {[%emt 0:00:00]} Rxe3 {[%emt 0:00:11]} 25. Bxe3 {[%emt 0:00:00]} c5 {[%emt 0:01:20]} 26. Nf5 {[%emt 0:00:00]} axb3 {[%emt 0:02:07]} 27. cxb3 {[%emt 0:00:00]} b6 {[%emt 0:07:21]} 28. Nh4 {[%emt 0:00:00]} Re8 {[%emt 0:04:49]} 29. Qd1 {[%emt 0:00:00]} f5 {[%emt 0:04:18]} 30. Nf3 {[%emt 0:00:00]} Bxh5 {[%emt 0:01:18]} 31. Rh3 {[%emt 0:00:00]} Bxf3 {[%emt 0:00:28]} 32. Qxf3 {[%emt 0:00:00]} g5 {[%emt 0:00:54]} 33. Rh5 {[%emt 0:00:00]} f4 {[%emt 0:00:42]} 34. Bd2 {[%emt 0:00:00]} Qf5+ {[%emt 0:01:27]} 35. Kb2 {[%emt 0:00:00]} Qe4 {[%emt 0:03:16]} 36. Qd1 {[%emt 0:00:00]} Kg7 {[%emt 0:00:19]} 37. Qg4 {[%emt 0:00:00]} Qe6 {[%emt 0:01:23]} 38. Qf3 {[%emt 0:00:00]} Bf6 {[%emt 0:00:54]} 39. Qd3 {[%emt 0:00:00]} Qe4 {[%emt 0:00:27]} 40. Qb5 {[%emt 0:00:00]} Qe2 {[%emt 0:00:58]} 0-1